Workbook

Sheet Tabelle1
A1: Rechtsanwaltsvergütung nach dem RVG (Stand 01.01.2021) | G1: =(C4+C5)*VLOOKUP(B4,'§ 13 RVG'!A1:B250,2) -> 434.20 € | H1: =(C4+C5)*VLOOKUP(B4,'§ 49 RVG'!A1:B24,2) -> 369.20 € | I1: =C8*VLOOKUP(B8,'§ 13 RVG'!A1:B250,2) -> 49.00 € | J1: =C8*VLOOKUP(B8,'§ 49 RVG'!A1:B24,2) -> 49.00 €
G2: =IF(B6=0,0,C6*VLOOKUP(B6,'§ 13 RVG'!$A$1:$B$250,2)) -> 0 | H2: =IF(B6=0,0,C6*VLOOKUP(B6,'§ 49 RVG'!$A$1:$B$24,2)) -> 0 | I2: =IF(B9=0,0,C9*VLOOKUP(B9,'§ 13 RVG'!$A$1:$B$250,2)) -> 0 | J2: =IF(B9=0,0,C9*VLOOKUP(B9,'§ 49 RVG'!$A$1:$B$24,2)) -> 0
B3: Streitwert | C3: Gebührensatz | D3: Wahlanwalt § 13 RVG | E3: PKH § 49 RVG | G3: =SUM(G1:G2) -> 434.20 € | H3: =SUM(H1:H2) -> 369.20 € | I3: =SUM(I1:I2) -> 49.00 € | J3: =SUM(J1:J2) -> 49.00 €
A4: Verfahrensgebühr | B4: 5,000.00 € | C4: 1.3 | D4: =IF(C4*VLOOKUP(B4,'§ 13 RVG'!$A$1:$B$250,2)<=15,15,C4*VLOOKUP(B4,'§ 13 RVG'!$A$1:$B$250,2)) -> 434.20 € | E4: =IF(C4*VLOOKUP(B4,'§ 49 RVG'!A1:B23,2)<=15,15,C4*VLOOKUP(B4,'§ 49 RVG'!A1:B23,2)) -> 369.20 € | G4: =(C4+C5)*VLOOKUP((B4+B6),'§ 13 RVG'!$A$1:$B$250,2) -> 434.20 € | H4: =(C4+C5)*VLOOKUP((B4+B6),'§ 49 RVG'!$A$1:$B$250,2) -> 369.20 € | I4: =C9*VLOOKUP((B8+B9),'§ 13 RVG'!$A$1:$B$250,2) -> 73.50 € | J4: =C9*VLOOKUP((B8+B9),'§ 49 RVG'!$A$1:$B$24,2) -> 73.50 €
A5: mehrere Auftraggeber | B5: 0 | C5: =IF(B5*0.3<=2,B5*0.3,2) -> 0 | D5: =IF(B5=0,0,C5*VLOOKUP(B4,'§ 13 RVG'!A1:B250,2)) -> 0 | E5: =IF(B5=0,0,C5*VLOOKUP(B4,'§ 49 RVG'!A1:B23,2)) -> 0 | G5: =G4-G1 -> 0 | H5: =H4-H1 -> 0 | I5: =I4-I1 -> 24.50 € | J5: =J4-J1 -> 24.50 €
A6: Verfahrensgeb. bei Mehrvergl. | B6: 0 | C6: =0.8+C5 -> 0.8 | D6: =IF(B6=0,0,IF(G4<G3,G5,G2)) -> 0 | E6: =IF(B6=0,0,IF(H4<H3,H5,H2)) -> 0
A7: Terminsgebühr | B7: =B4 -> 5,000.00 € | C7: 1.2 | D7: =IF(B7=0,0,C7*VLOOKUP(B7,'§ 13 RVG'!$A$1:$B$250,2)) -> 400.80 € | E7: =IF(B7=0,0,C7*VLOOKUP(B7,'§ 49 RVG'!$A$1:$B$23,2)) -> 340.80 €
A8: Einigungsgebühr | B8: 0 | C8: 1 | D8: =IF(B8=0,0,C8*VLOOKUP(B8,'§ 13 RVG'!$A$1:$B$250,2)) -> 0 | E8: =IF(B8=0,0,C8*VLOOKUP(B8,'§ 49 RVG'!$A$1:$B$23,2)) -> 0 | H8: 0 | I8: 30
A9: Einigungsgeb. bei Mehrvergl. | B9: =B6 -> 0 | C9: 1.5 | D9: =IF(I4<I3,I5,I2) -> 0 | E9: =IF(J4<J3,J5,J2) -> 0
A10: Anrechnung Geschäftsgebühr | B10: 0 | C10: -0.65 | D10: =IF(B10=0,0,C10*VLOOKUP(B10,'§ 13 RVG'!$A$1:$B$250,2)) -> 0 | E10: =IF(B10=0,0,C10*VLOOKUP(B10,'§ 49 RVG'!$A$1:$B$19,2)) -> 0
A11: Bei Anrechnung von Beratungshilfe Betrag in die gelbe Zelle einsetzen | D11: 0 | E11: 0
A12: Reisekosten | B12: 0 | D12: =B12*0.42 -> 0 | E12: =B12*0.42 -> 0 | H12: 4.01 | I12: 50
A13: Abwesenheitsgeld | B13: 0 | D13: =IF(B13<=0,0,(VLOOKUP(B13,H8:I13,2))) -> 0 | E13: =IF(B13<=0,0,(VLOOKUP(B13,H8:I13,2))) -> 0 | H13: 8.01 | I13: 70
A14: Kopien | B14: 0 | D14: =IF(B14<=50,B14*0.5,(50*0.5+(B14-50)*0.15)) -> 0 | E14: =IF(B14<=50,B14*0.5,(50*0.5+(B14-50)*0.15)) -> 0 | G14: =SUM(D4:D9)*(20/100) -> 167
A15: Auslagen | D15: =IF(G14<20,G14,20) -> 20.00 € | E15: =IF(G14<20,G14,20) -> 20.00 € | G15: =SUM(E4:E9)*20/100 -> 142.00 €
B16: Summe (ohne U-Steuer): | D16: =SUM(D4:D15) -> 855.00 € | E16: =SUM(E4:E15) -> 730.00 €
A17: Umsatzsteuer | B17: 19 | C17: % | D17: =SUM(D4:D15)*(B17/100) -> 162.45 € | E17: =SUM(E4:E15)*(B17/100) -> 138.70 €
C18: Summe: | D18: =D16+D17 -> 1,017.45 € | E18: =E16+E17 -> 868.70 €
C19: weitere Vergütung | D19: =D18-E18 -> 148.75 €
A20: Erhaltene Zahlungen | B20: 0.00 € | C20: verbleiben | D20: =D18-B20 -> 1,017.45 € | E20: =E18-B20 -> 868.70 €
A22: Bei Kostenfestsetzung: | B22: Gerichtskosten: | C22: 0 | D22: =IF(C22<>0,D18+C22+C23,0) -> 0 | E22: Summe Anwalts- und Gerichtskosten
B23: Kosten weiterer Anwalt (Unter- bevollmächtigter pp.) | C23: 0 | D23: =IF(C22<>0,D16+C22+C23,0) -> 0 | E23: Summe Anwalts- und Gerichtskosten bei Vorsteuerabzug
A24: © J. Bitter

Sheet § 13 RVG (hidden)
A1: 0.00 € | B1: 49.00 €
A2: 500.01 € | B2: 88.00 €
A3: 1,000.01 € | B3: 127.00 €
A4: 1,500.01 € | B4: 166.00 €
A5: 2,000.01 € | B5: 222.00 €
A6: 3,000.01 € | B6: 278.00 €
A7: 4,000.01 € | B7: 334.00 €
A8: 5,000.01 € | B8: 390.00 €
A9: 6,000.01 € | B9: 446.00 €
A10: 7,000.01 € | B10: 502.00 €
A11: 8,000.01 € | B11: 558.00 €
A12: 9,000.01 € | B12: 614.00 €
A13: 10,000.01 € | B13: 666.00 €
A14: 13,000.01 € | B14: 718.00 €
A15: 16,000.01 € | B15: 770.00 €
A16: 19,000.01 € | B16: 822.00 €
A17: 22,000.01 € | B17: 874.00 €
A18: 25,000.01 € | B18: 955.00 €
A19: 30,000.01 € | B19: 1,036.00 €
A20: 35,000.01 € | B20: 1,117.00 €
A21: 40,000.01 € | B21: 1,198.00 €
A22: 45,000.01 € | B22: 1,279.00 €
A23: 50,000.01 € | B23: 1,373.00 €
A24: 65,000.01 € | B24: 1,467.00 €
A25: 80,000.01 € | B25: 1,561.00 €
A26: 95,000.01 € | B26: 1,655.00 €
A27: 110,000.01 € | B27: 1,749.00 €
A28: 125,000.01 € | B28: 1,843.00 €
A29: 140,000.01 € | B29: 1,937.00 €
A30: 155,000.01 € | B30: 2,031.00 €
A31: 170,000.01 € | B31: 2,125.00 €
A32: 185,000.01 € | B32: 2,219.00 €
A33: 200,000.01 € | B33: 2,351.00 €
A34: 230,000.01 € | B34: 2,483.00 €
A35: 260,000.01 € | B35: 2,615.00 €
A36: 290,000.01 € | B36: 2,747.00 €
A37: 320,000.01 € | B37: 2,879.00 €
A38: 350,000.01 € | B38: 3,011.00 €
A39: 380,000.01 € | B39: 3,143.00 €
A40: 410,000.01 € | B40: 3,275.00 €
A41: 440,000.01 € | B41: 3,407.00 €
A42: 470,000.01 € | B42: 3,539.00 €
A43: 500,000.01 € | B43: 3,704.00 €
A44: 550,000.01 € | B44: 3,869.00 €
A45: 600,000.01 € | B45: 4,034.00 €
A46: 650,000.01 € | B46: 4,199.00 €
A47: 700,000.01 € | B47: 4,364.00 €
A48: 750,000.01 € | B48: 4,529.00 €
A49: 800,000.01 € | B49: 4,694.00 €
A50: 850,000.01 € | B50: 4,859.00 €
A51: 900,000.01 € | B51: 5,024.00 €
A52: 950,000.01 € | B52: 5,189.00 €
A53: 1,000,000.01 € | B53: 5,354.00 €
A54: 1,050,000.01 € | B54: 5,519.00 €
A55: 1,100,000.01 € | B55: 5,684.00 €
A56: 1,150,000.01 € | B56: 5,849.00 €
A57: 1,200,000.01 € | B57: 6,014.00 €
A58: 1,250,000.01 € | B58: 6,179.00 €
A59: 1,300,000.01 € | B59: 6,344.00 €
A60: 1,350,000.01 € | B60: 6,509.00 €
A61: 1,400,000.01 € | B61: 6,674.00 €
A62: 1,450,000.01 € | B62: 6,839.00 €
A63: 1,500,000.01 € | B63: 7,004.00 €
A64: 1,550,000.01 € | B64: 7,169.00 €
A65: 1,600,000.01 € | B65: 7,334.00 €
A66: 1,650,000.01 € | B66: 7,499.00 €
A67: 1,700,000.01 € | B67: 7,664.00 €
A68: 1,750,000.01 € | B68: 7,829.00 €
A69: 1,800,000.01 € | B69: 7,994.00 €
A70: 1,850,000.01 € | B70: 8,159.00 €
A71: 1,900,000.01 € | B71: 8,324.00 €
A72: 1,950,000.01 € | B72: 8,489.00 €
A73: 2,000,000.01 € | B73: =B72+165 -> 8,654.00 €
A74: 2,050,000.01 € | B74: =B73+165 -> 8,819.00 €
A75: 2,100,000.01 € | B75: =B74+165 -> 8,984.00 €
A76: 2,150,000.01 € | B76: 9,149.00 €
A77: 2,200,000.01 € | B77: 9,314.00 €
A78: 2,250,000.01 € | B78: 9,479.00 €
A79: 2,300,000.01 € | B79: 9,644.00 €
A80: 2,350,000.01 € | B80: 9,809.00 €
A81: 2,400,000.01 € | B81: 9,974.00 €
A82: 2,450,000.01 € | B82: 10,139.00 €
A83: 2,500,000.01 € | B83: 10,304.00 €
A84: 2,550,000.01 € | B84: 10,469.00 €
A85: 2,600,000.01 € | B85: 10,634.00 €
A86: 2,650,000.01 € | B86: 10,799.00 €
A87: 2,700,000.01 € | B87: 10,964.00 €
A88: 2,750,000.01 € | B88: 11,129.00 €
A89: 2,800,000.01 € | B89: 11,294.00 €
A90: 2,850,000.01 € | B90: 11,459.00 €
A91: 2,900,000.01 € | B91: 11,624.00 €
A92: 2,950,000.01 € | B92: 11,789.00 €
A93: 3,000,000.01 € | B93: 11,954.00 €
A94: 3,050,000.01 € | B94: 12,119.00 €
A95: 3,100,000.01 € | B95: 12,284.00 €
A96: 3,150,000.01 € | B96: 12,449.00 €
A97: 3,200,000.01 € | B97: 12,614.00 €
A98: 3,250,000.01 € | B98: 12,779.00 €
A99: 3,300,000.01 € | B99: 12,944.00 €
A100: 3,350,000.01 € | B100: 13,109.00 €
A101: 3,400,000.01 € | B101: 13,274.00 €
A102: 3,450,000.01 € | B102: 13,439.00 €
A103: 3,500,000.01 € | B103: 13,604.00 €
A104: 3,550,000.01 € | B104: 13,769.00 €
A105: 3,600,000.01 € | B105: 13,934.00 €
A106: 3,650,000.01 € | B106: 14,099.00 €
A107: 3,700,000.01 € | B107: 14,264.00 €
A108: 3,750,000.01 € | B108: 14,429.00 €
A109: 3,800,000.01 € | B109: 14,594.00 €
A110: 3,850,000.01 € | B110: 14,759.00 €
A111: 3,900,000.01 € | B111: 14,924.00 €
A112: 3,950,000.01 € | B112: 15,089.00 €
A113: 4,000,000.01 € | B113: 15,254.00 €
A114: 4,050,000.01 € | B114: 15,419.00 €
A115: 4,100,000.01 € | B115: 15,584.00 €
A116: 4,150,000.01 € | B116: 15,749.00 €
A117: 4,200,000.01 € | B117: 15,914.00 €
A118: 4,250,000.01 € | B118: 16,079.00 €
A119: 4,300,000.01 € | B119: 16,244.00 €
A120: 4,350,000.01 € | B120: 16,409.00 €
A121: 4,400,000.01 € | B121: 16,574.00 €
A122: 4,450,000.01 € | B122: 16,739.00 €
A123: 4,500,000.01 € | B123: 16,904.00 €
A124: 4,550,000.01 € | B124: 17,069.00 €
A125: 4,600,000.01 € | B125: 17,234.00 €
A126: 4,650,000.01 € | B126: 17,399.00 €
A127: 4,700,000.01 € | B127: 17,564.00 €
A128: 4,750,000.01 € | B128: 17,729.00 €
A129: 4,800,000.01 € | B129: 17,894.00 €
A130: 4,850,000.01 € | B130: 18,059.00 €
A131: 4,900,000.01 € | B131: 18,224.00 €
A132: 4,950,000.01 € | B132: 18,389.00 €
A133: 5,000,000.01 € | B133: 18,554.00 €
A134: 5,050,000.01 € | B134: 18,719.00 €
A135: 5,100,000.01 € | B135: 18,884.00 €
A136: 5,150,000.01 € | B136: 19,049.00 €
A137: 5,200,000.01 € | B137: 19,214.00 €
A138: 5,250,000.01 € | B138: 19,379.00 €
A139: 5,300,000.01 € | B139: =B138+165 -> 19,544.00 €
A140: 5,350,000.01 € | B140: 19,709.00 €
A141: 5,400,000.01 € | B141: 19,874.00 €
A142: 5,450,000.01 € | B142: 20,039.00 €
A143: 5,500,000.01 € | B143: 20,204.00 €
A144: 5,550,000.01 € | B144: 20,369.00 €
A145: 5,600,000.01 € | B145: 20,534.00 €
A146: 5,650,000.01 € | B146: 20,699.00 €
A147: 5,700,000.01 € | B147: 20,864.00 €
A148: 5,750,000.01 € | B148: 21,029.00 €
A149: 5,800,000.01 € | B149: 21,194.00 €
A150: 5,850,000.01 € | B150: 21,359.00 €
A151: 5,900,000.01 € | B151: 21,524.00 €
A152: 5,950,000.01 € | B152: 21,689.00 €
A153: 6,000,000.01 € | B153: 21,854.00 €
A154: 6,050,000.01 € | B154: 22,019.00 €
A155: 6,100,000.01 € | B155: 22,184.00 €
A156: 6,150,000.01 € | B156: 22,349.00 €
A157: 6,200,000.01 € | B157: 22,514.00 €
A158: 6,250,000.01 € | B158: 22,679.00 €
A159: 6,300,000.01 € | B159: 22,844.00 €
A160: 6,350,000.01 € | B160: 23,009.00 €
A161: 6,400,000.01 € | B161: 23,174.00 €
A162: 6,450,000.01 € | B162: 23,339.00 €
A163: 6,500,000.01 € | B163: 23,504.00 €
A164: 6,550,000.01 € | B164: 23,669.00 €
A165: 6,600,000.01 € | B165: 23,834.00 €
A166: 6,650,000.01 € | B166: 23,999.00 €
A167: 6,700,000.01 € | B167: 24,164.00 €
A168: 6,750,000.01 € | B168: 24,329.00 €
A169: 6,800,000.01 € | B169: 24,494.00 €
A170: 6,850,000.01 € | B170: 24,659.00 €
A171: 6,900,000.01 € | B171: 24,824.00 €
A172: 6,950,000.01 € | B172: 24,989.00 €
A173: 7,000,000.01 € | B173: 25,154.00 €
A174: 7,050,000.01 € | B174: 25,319.00 €
A175: 7,100,000.01 € | B175: 25,484.00 €
A176: 7,150,000.01 € | B176: 25,649.00 €
A177: 7,200,000.01 € | B177: 25,814.00 €
A178: 7,250,000.01 € | B178: 25,979.00 €
A179: 7,300,000.01 € | B179: 26,144.00 €
A180: 7,350,000.01 € | B180: 26,309.00 €
A181: 7,400,000.01 € | B181: 26,474.00 €
A182: 7,450,000.01 € | B182: 26,639.00 €
A183: 7,500,000.01 € | B183: 26,804.00 €
A184: 7,550,000.01 € | B184: 26,969.00 €
A185: 7,600,000.01 € | B185: 27,134.00 €
A186: 7,650,000.01 € | B186: 27,299.00 €
A187: 7,700,000.01 € | B187: 27,464.00 €
A188: 7,750,000.01 € | B188: 27,629.00 €
A189: 7,800,000.01 € | B189: 27,794.00 €
A190: 7,850,000.01 € | B190: 27,959.00 €
A191: 7,900,000.01 € | B191: 28,124.00 €
A192: 7,950,000.01 € | B192: 28,289.00 €
A193: 8,000,000.01 € | B193: 28,454.00 €
A194: 8,050,000.01 € | B194: 28,619.00 €
A195: 8,100,000.01 € | B195: 28,784.00 €
A196: 8,150,000.01 € | B196: 28,949.00 €
A197: 8,200,000.01 € | B197: 29,114.00 €
A198: 8,250,000.01 € | B198: 29,279.00 €
A199: 8,300,000.01 € | B199: 29,444.00 €
A200: 8,350,000.01 € | B200: 29,609.00 €
... 50 more rows

Sheet § 49 RVG (hidden)
A1: 0.00 € | B1: 49.00 €
A2: 500.01 € | B2: 88.00 €
A3: 1,000.01 € | B3: 127.00 €
A4: 1,500.01 € | B4: 166.00 €
A5: 2,000.01 € | B5: 222.00 €
A6: 3,000.01 € | B6: 278.00 €
A7: 4,000.01 € | B7: 284.00 €
A8: 5,000.01 € | B8: 295.00 €
A9: 6,000.01 € | B9: 306.00 €
A10: 7,000.01 € | B10: 317.00 €
A11: 8,000.01 € | B11: 328.00 €
A12: 9,000.01 € | B12: 339.00 €
A13: 10,000.01 € | B13: 354.00 €
A14: 13,000.01 € | B14: 369.00 €
A15: 16,000.01 € | B15: 384.00 €
A16: 19,000.01 € | B16: 399.00 €
A17: 22,000.01 € | B17: 414.00 €
A18: 25,000.01 € | B18: 453.00 €
A19: 30,000.01 € | B19: 492.00 €
A20: 35,000.01 € | B20: 531.00 €
A21: 40,000.01 € | B21: 570.00 €
A22: 45,000.01 € | B22: 609.00 €
A23: 50,000.01 € | B23: 659.00 €

Sheet Tabelle2
